fUSD/lending_fUSD_20250507
["ID","MTS","AMOUNT","RATE_DAILY","PERIOD"]
[360197389,1746615046118,-475.0,0.00019514,2]
[360197390,1746615046128,-450.0,0.00019514,2]
[360197391,1746615046137,-475.0,0.00019515,2]
[360197392,1746615046147,-450.0,0.00019515,2]
[360197393,1746615046157,-154.19875498,0.00019516,2]
[360197394,1746615046174,-402.42908983,0.00019516,2]
[360197411,1746615087790,-4458.82143992,0.00019516,2]
[360197412,1746615087807,-2119.49919063,0.00019516,2]
[360197413,1746615087816,-216.71390437,0.00019516,2]
[360197414,1746615087828,-258.28609563,0.00019516,2]
[360197415,1746615087837,-3921.71390437,0.00019527,2]
[360197416,1746615087849,-3083.1519451,0.00019527,2]
[360197417,1746615087860,-10864.91415053,0.00019527,2]
[360197418,1746615087870,-3354.86512691,0.00019527,2]
[360197419,1746615087881,-281.0,0.00019527,2]
[360197420,1746615087904,-584.2673,0.00019527,2]
[360197421,1746615087915,-3873.85778868,0.00019527,2]
[360197422,1746615087962,408.604031,0.00019428,2]
[360197423,1746615088621,335.8234,0.00019414,2]
[360197424,1746615096623,150.0,0.00018986,7]
[360197476,1746615224067,293.03758806,0.00019413,2]
[360197477,1746615357895,225.68268607,0.00019479,2]
[360197478,1746615373646,2068.21713296,0.00019417,2]
[360197479,1746615421952,736.08964,0.00019,2]
[360197480,1746615430286,656.20358945,0.00019404,2]
[360197481,1746615495078,3978.39617853,0.00019414,2]
[360197482,1746615590072,1930.9418,0.00019415,2]
[360197483,1746615642376,300.0,0.0003,30]
[360197484,1746615658022,300.0,0.0003,30]
[360197485,1746615669720,1330.0,0.000194,2]
[360197486,1746615675013,300.0,0.0003,30]
[360197487,1746615695317,300.0,0.0003,30]
[360197488,1746615722130,250.0,0.00017,2]
[360197489,1746615723229,300.0,0.00019,2]
[360197490,1746615760041,1861.3954197,0.00019465,2]
[360197491,1746615805203,2015.88971818,0.00027397,30]
[360197492,1746615810663,300.00095697,0.0003,30]
[360197493,1746615906124,1000.0,0.00018558,2]
[360197494,1746616010285,3580.55656065,0.00019414,2]
[360197495,1746616103818,166.68,0.00019121,2]
[360197496,1746616149045,1675.25587773,0.0001948,2]
[360197498,1746616202128,-190.04801037,0.00019501,2]
[360197499,1746616208616,-231.74989668,0.00019501,2]
[360197500,1746616218231,-158.87171738,0.00019501,2]
[360197501,1746616230575,580.669625,0.00019403,2]
[360197506,1746616232256,-619.33037557,0.00019501,2]
[360197507,1746616232265,-292.23962443,0.00019501,2]
[360197508,1746616232310,-7.76037557,0.00019501,2]
[360197509,1746616232320,-300.0,0.00019501,2]
[360197510,1746616232329,-151.0,0.00019502,2]
[360197511,1746616232339,-200.0,0.00019502,2]
[360197512,1746616232348,-495.79676186,0.00019502,2]
[360197513,1746616232527,-4.20323814,0.00019502,2]
[360197514,1746616232537,-236.52099033,0.00019502,2]
[360197515,1746616232547,-151.0,0.00019502,2]
[360197523,1746616232758,-155.0,0.00019502,2]
[360197525,1746616232769,-151.0,0.00019502,2]
[360197527,1746616232779,-151.67207982,0.00019502,2]
[360197529,1746616232789,-207.4,0.00019502,2]
[360197531,1746616232799,-668.65185757,0.00019502,2]
[360197533,1746616232809,-151.0,0.00019502,2]
[360197535,1746616232819,-151.0,0.00019502,2]
[360197537,1746616232829,-192.34454578,0.00019504,2]
[360197539,1746616232839,-4625.43886069,0.00019504,2]
[360197541,1746616232848,-154.45,0.00019504,2]
[360197543,1746616232859,-574.84,0.00019504,2]
[360197545,1746616232869,-278.0,0.00019512,2]
[360197547,1746616232879,-500.0,0.00019513,2]
[360197550,1746616232888,-500.0,0.00019513,2]
[360197553,1746616232898,-512.67819783,0.00019513,2]
[360197555,1746616232908,-500.0,0.00019513,2]
[360197558,1746616232919,-500.0,0.00019513,2]
[360197561,1746616232930,-500.0,0.00019513,2]
[360197563,1746616232940,-500.0,0.00019513,2]
[360197564,1746616232950,-500.0,0.00019513,2]
[360197567,1746616232960,-500.0,0.00019513,2]
[360197569,1746616232970,-500.0,0.00019513,2]
[360197570,1746616232981,-500.0,0.00019513,2]
[360197572,1746616232991,-576.16845544,0.00019513,2]
[360197574,1746616233001,-495.96595279,0.00019513,2]
[360197576,1746616233011,-275.93993691,0.00019513,2]
[360197578,1746616233022,-1000.0,0.00019514,2]
[360197581,1746616233034,-1000.0,0.00019514,2]
[360197583,1746616233045,-1000.0,0.00019514,2]
[360197584,1746616233057,-1000.0,0.00019514,2]
[360197586,1746616233068,-1000.0,0.00019514,2]
[360197588,1746616233079,-1000.0,0.00019514,2]
[360197590,1746616233090,-1000.0,0.00019514,2]
[360197592,1746616233100,-1000.0,0.00019514,2]
[360197594,1746616233111,-1000.0,0.00019514,2]
[360197596,1746616233121,-1000.0,0.00019514,2]
[360197598,1746616233132,-1000.0,0.00019514,2]
[360197600,1746616233143,-1000.0,0.00019514,2]
[360197602,1746616233153,-1000.0,0.00019514,2]
[360197604,1746616233163,-1000.0,0.00019514,2]
[360197606,1746616233175,-1000.0,0.00019514,2]
[360197608,1746616233187,-1000.0,0.00019514,2]
[360197610,1746616233197,-1000.0,0.00019514,2]
[360197612,1746616233209,-1000.0,0.00019514,2]
[360197614,1746616233219,-1000.0,0.00019514,2]
[360197616,1746616233229,-1000.0,0.00019514,2]
[360197618,1746616233239,-1000.0,0.00019514,2]
[360197620,1746616233250,-1000.0,0.00019514,2]
[360197622,1746616233260,-1000.0,0.00019514,2]
[360197624,1746616233270,-1000.0,0.00019514,2]
[360197626,1746616233280,-1000.0,0.00019514,2]
[360197628,1746616233290,-1000.0,0.00019514,2]
[360197630,1746616233300,-1000.0,0.00019514,2]
[360197632,1746616233312,-1000.0,0.00019514,2]
[360197634,1746616233322,-1000.0,0.00019514,2]
[360197636,1746616233331,-1000.0,0.00019514,2]
[360197638,1746616233341,-1000.0,0.00019514,2]
[360197640,1746616233353,-1000.0,0.00019514,2]
[360197642,1746616233364,-1000.0,0.00019514,2]
[360197644,1746616233374,-1000.0,0.00019514,2]
[360197646,1746616233384,-1000.0,0.00019514,2]
[360197648,1746616233395,-1000.0,0.00019514,2]
[360197650,1746616233405,-1000.0,0.00019514,2]
[360197652,1746616233415,-1000.0,0.00019514,2]
[360197654,1746616233426,-1000.0,0.00019514,2]
[360197656,1746616233437,-1000.0,0.00019514,2]
[360197658,1746616233447,-1089.0,0.00019514,2]
[360197659,1746616233457,-459.42813171,0.00019514,2]
[360197661,1746616233467,-450.0,0.00019514,2]
[360197663,1746616233476,-484.20547406,0.00019514,2]
[360197665,1746616233486,-492.65561781,0.00019514,2]
[360197667,1746616233496,-450.52701144,0.00019514,2]
[360197669,1746616233506,-467.62524232,0.00019514,2]
[360197671,1746616233516,-476.14363279,0.00019514,2]
[360197673,1746616233526,-459.81503688,0.00019514,2]
[360197675,1746616233536,-470.66081904,0.00019514,2]
[360197677,1746616233547,-450.0,0.00019514,2]
[360197679,1746616233557,-472.79134008,0.00019514,2]
[360197681,1746616233566,-450.0,0.00019514,2]
[360197683,1746616233576,-189.90003273,0.00019514,2]
[360197685,1746616233587,-503.29,0.00019514,2]
[360197687,1746616233600,-450.0,0.00019514,2]
[360197689,1746616233610,-407.31611537,0.00019514,2]
[360197691,1746616233620,-482.57748486,0.00019514,2]
[360197692,1746616233631,-381.58716468,0.00019514,2]
[360197694,1746616233641,-450.0,0.00019514,2]
[360197697,1746616233652,-450.0,0.00019514,2]
[360197699,1746616233662,-450.0,0.00019514,2]
[360197701,1746616233673,-450.0,0.00019514,2]
[360197703,1746616233684,-300.27871466,0.00019514,2]
[360197705,1746616233695,-450.0,0.00019514,2]
[360197706,1746616233704,-450.0,0.00019514,2]
[360197709,1746616233716,-472.12419073,0.00019514,2]
[360197710,1746616233727,-457.27346811,0.00019514,2]
[360197713,1746616233738,-477.45011307,0.00019514,2]
[360197715,1746616233748,-475.40475556,0.00019514,2]
[360197717,1746616233759,-450.0,0.00019514,2]
[360197719,1746616233769,-450.0,0.00019514,2]
[360197720,1746616233779,-450.0,0.00019514,2]
[360197722,1746616233790,-501.3447637,0.00019514,2]
[360197725,1746616233801,-540.08013166,0.00019514,2]
[360197727,1746616233811,-450.0,0.00019514,2]
[360197728,1746616233821,-480.5541452,0.00019514,2]
[360197730,1746616233832,-478.51910426,0.00019514,2]
[360197732,1746616233842,-450.0,0.00019514,2]
[360197734,1746616233852,-450.0,0.00019514,2]
[360197736,1746616233864,-461.90250931,0.00019514,2]
[360197739,1746616233874,-539.84188496,0.00019514,2]
[360197740,1746616233884,-501.70264515,0.00019514,2]
[360197742,1746616233894,-477.83338011,0.00019514,2]
[360197744,1746616233904,-450.0,0.00019514,2]
[360197746,1746616233915,-500.0,0.00019514,2]
[360197748,1746616233926,-450.0,0.00019514,2]
[360197750,1746616233937,-442.19073111,0.00019514,2]
[360197752,1746616233948,-477.94828008,0.00019514,2]
[360197754,1746616233959,-476.11716572,0.00019514,2]
[360197757,1746616233969,-255.49301602,0.00019514,2]
[360197758,1746616233979,-550.0,0.00019514,2]
[360197760,1746616233990,-450.0,0.00019514,2]
[360197762,1746616234000,-450.0,0.00019514,2]
[360197764,1746616234011,-450.0,0.00019514,2]
[360197766,1746616234022,-548.57414317,0.00019514,2]
[360197768,1746616234032,-419.0785338,0.00019514,2]
[360197770,1746616234042,-450.55240138,0.00019514,2]
[360197773,1746616234053,-450.0,0.00019514,2]
[360197775,1746616234064,-256.96,0.00019514,2]
[360197776,1746616234074,-334.81702702,0.00019514,2]
[360197778,1746616234084,-450.0,0.00019514,2]
[360197780,1746616234095,-482.99735583,0.00019514,2]
[360197783,1746616234105,-450.0,0.00019514,2]
[360197784,1746616234115,-455.00283783,0.00019514,2]
[360197786,1746616234126,-235.81909282,0.00019514,2]
[360197788,1746616234136,-450.0,0.00019514,2]
[360197791,1746616234147,-450.0,0.00019514,2]
[360197793,1746616234158,-480.58509124,0.00019514,2]
[360197795,1746616234168,-450.0,0.00019514,2]
[360197797,1746616234179,-450.0,0.00019514,2]
[360197799,1746616234189,-453.63252625,0.00019514,2]
[360197800,1746616234199,-450.0,0.00019514,2]
[360197802,1746616234209,-455.8309338,0.00019514,2]
[360197804,1746616234220,-450.0,0.00019514,2]
[360197807,1746616234231,-450.0,0.00019514,2]
[360197809,1746616234242,-468.31977243,0.00019514,2]
[360197811,1746616234253,-450.0,0.00019514,2]
[360197812,1746616234263,-429.56312401,0.00019514,2]
[360197814,1746616234273,-450.0,0.00019514,2]
[360197816,1746616234282,-469.82009592,0.00019514,2]
[360197818,1746616234294,-451.68799617,0.00019514,2]
[360197821,1746616234306,-450.0,0.00019514,2]
[360197822,1746616234316,-334.65420629,0.00019514,2]
[360197824,1746616234325,-450.0,0.00019514,2]
[360197826,1746616234336,-453.34441231,0.00019514,2]
[360197828,1746616234346,-450.0,0.00019514,2]
[360197830,1746616234357,-505.01102328,0.00019514,2]
[360197832,1746616234366,-485.50184135,0.00019514,2]
[360197834,1746616234376,-450.0,0.00019514,2]
[360197837,1746616234387,-472.66153521,0.00019514,2]
[360197838,1746616234396,-450.0,0.00019514,2]
[360197841,1746616234407,-450.0,0.00019514,2]
[360197842,1746616234417,-450.0,0.00019514,2]
[360197844,1746616234428,-471.96105517,0.00019514,2]
[360197846,1746616234438,-478.78483221,0.00019514,2]
[360197848,1746616234449,-450.0,0.00019514,2]
[360197850,1746616234459,-450.0,0.00019514,2]
[360197852,1746616234469,-477.47824666,0.00019514,2]
[360197854,1746616234478,-450.0,0.00019514,2]
[360197856,1746616234489,-450.0,0.00019514,2]
[360197858,1746616234499,-548.53660073,0.00019514,2]
[360197861,1746616234509,-450.0,0.00019514,2]
[360197862,1746616234518,-458.59436279,0.00019514,2]
[360197865,1746616234528,-450.0,0.00019514,2]
[360197866,1746616234538,-450.0,0.00019514,2]
[360197868,1746616234549,-500.57,0.00019514,2]
[360197871,1746616234559,-450.0,0.00019514,2]
[360197872,1746616234568,-216.45762449,0.00019514,2]
[360197874,1746616234577,-451.45915166,0.00019514,2]
[360197876,1746616234588,-501.80697938,0.00019514,2]
[360197878,1746616234600,-450.0,0.00019514,2]
[360197880,1746616234609,-450.0,0.00019514,2]
[360197882,1746616234619,-450.0,0.00019514,2]
[360197884,1746616234628,-450.0,0.00019514,2]
[360197886,1746616234638,-450.0,0.00019514,2]
[360197888,1746616234647,-450.0,0.00019514,2]
[360197890,1746616234657,-583.40126548,0.00019514,2]
[360197892,1746616234666,-450.0,0.00019514,2]
[360197894,1746616234675,-450.0,0.00019514,2]
[360197896,1746616234685,-512.17576822,0.00019514,2]
[360197898,1746616234694,-450.0,0.00019514,2]
[360197900,1746616234703,-450.0,0.00019514,2]
[360197902,1746616234712,-494.87682185,0.00019514,2]
[360197904,1746616234721,-450.0,0.00019514,2]
[360197906,1746616234730,-450.0,0.00019514,2]
[360197908,1746616234739,-450.0,0.00019514,2]
[360197910,1746616234750,-450.0,0.00019514,2]
[360197912,1746616234759,-450.0,0.00019514,2]
[360197914,1746616234769,-450.0,0.00019514,2]
[360197916,1746616234779,-532.75276435,0.00019514,2]
[360197918,1746616234789,-450.0,0.00019514,2]
[360197920,1746616234798,-450.0,0.00019514,2]
[360197922,1746616234808,-596.15,0.00019514,2]
[360197924,1746616234817,-520.41271571,0.00019514,2]
[360197926,1746616234826,-567.34,0.00019514,2]
[360197928,1746616234835,-450.0,0.00019514,2]
[360197930,1746616234844,-518.26,0.00019514,2]
[360197932,1746616234853,-546.8,0.00019514,2]
[360197934,1746616234862,-450.0,0.00019514,2]
[360197936,1746616234871,-450.0,0.00019514,2]
[360197938,1746616234880,-450.0,0.00019514,2]
[360197940,1746616234890,-460.41,0.00019514,2]
[360197942,1746616234899,-450.0,0.00019514,2]
[360197944,1746616234909,-450.0,0.00019514,2]
[360197946,1746616234918,-410.4912142,0.00019514,2]
[360197948,1746616234928,-450.0,0.00019514,2]
[360197950,1746616234937,-450.0,0.00019514,2]
[360197952,1746616234947,-191.865655,0.00019514,2]
[360197954,1746616234956,-6663.91,0.00019514,2]
[360197956,1746616234965,-450.0,0.00019514,2]
[360197958,1746616234974,-493.36161209,0.00019514,2]
[360197960,1746616234983,-461.33789752,0.00019514,2]
[360197962,1746616234992,-3675.47,0.00019514,2]
[360197964,1746616235001,-550.89699471,0.00019514,2]
[360197965,1746616235011,-450.0,0.00019514,2]
[360197966,1746616235020,-450.0,0.00019514,2]
[360197967,1746616235029,-523.94287964,0.00019514,2]
[360197968,1746616235038,-450.0,0.00019514,2]
[360197969,1746616235047,-450.0,0.00019514,2]
[360197970,1746616235056,-450.0,0.00019514,2]
[360197971,1746616235065,-450.0,0.00019514,2]
[360197972,1746616235075,-473.46027816,0.00019514,2]
[360197973,1746616235084,-450.0,0.00019514,2]
[360197974,1746616235093,-450.0,0.00019514,2]
[360197975,1746616235103,-450.0,0.00019514,2]
[360197976,1746616235112,-450.0,0.00019514,2]
[360197977,1746616235121,-490.04438079,0.00019514,2]
[360197978,1746616235131,-470.0,0.00019514,2]
[360197979,1746616235140,-450.0,0.00019514,2]
[360197980,1746616235149,-450.0,0.00019514,2]
[360197981,1746616235159,-450.0,0.00019514,2]
[360197982,1746616235168,-450.0,0.00019514,2]
[360197983,1746616235177,-450.0,0.00019514,2]
[360197984,1746616235186,-450.0,0.00019514,2]
[360197985,1746616235196,-450.0,0.00019514,2]
[360197986,1746616235205,-494.95319663,0.00019514,2]
[360197987,1746616235215,-19536.83,0.00019514,2]
[360197989,1746616235224,-486.46,0.00019514,2]
[360197990,1746616235233,-502.30998323,0.00019514,2]
[360197992,1746616235242,-516.39,0.00019514,2]
[360197994,1746616235251,-483.00939142,0.00019514,2]
[360197996,1746616235260,-450.0,0.00019514,2]
[360197998,1746616235269,-450.0,0.00019514,2]
[360198000,1746616235278,-450.0,0.00019514,2]
[360198002,1746616235287,-450.0,0.00019514,2]
[360198004,1746616235296,-450.0,0.00019514,2]
[360198006,1746616235305,-450.0,0.00019514,2]
[360198008,1746616235314,-450.0,0.00019514,2]
[360198010,1746616235323,-450.0,0.00019514,2]
[360198012,1746616235333,-568.22,0.00019514,2]
[360198014,1746616235342,-450.0,0.00019514,2]
[360198016,1746616235351,-504.08818385,0.00019514,2]
[360198018,1746616235360,-450.0,0.00019514,2]
[360198020,1746616235369,-450.0,0.00019514,2]
[360198022,1746616235378,-500.0,0.00019514,2]
[360198024,1746616235387,-470.0,0.00019514,2]
[360198027,1746616235398,-450.0,0.00019514,2]
[360198029,1746616235408,-450.0,0.00019514,2]
[360198030,1746616235419,-470.0,0.00019514,2]
[360198032,1746616235430,-450.0,0.00019514,2]
[360198034,1746616235439,-450.0,0.00019514,2]
[360198036,1746616235449,-500.0,0.00019514,2]
[360198038,1746616235458,-470.0,0.00019514,2]
[360198040,1746616235467,-450.0,0.00019514,2]
[360198042,1746616235476,-450.0,0.00019514,2]
[360198044,1746616235485,-470.0,0.00019514,2]
[360198046,1746616235494,-450.0,0.00019514,2]
[360198048,1746616235503,-403.02036585,0.00019514,2]
[360198050,1746616235513,-450.0,0.00019514,2]
[360198052,1746616235522,-450.0,0.00019514,2]
[360198054,1746616235531,-477.92493536,0.00019514,2]
[360198056,1746616235540,-531.08,0.00019514,2]
[360198058,1746616235549,-450.0,0.00019514,2]
[360198060,1746616235559,-461.38929947,0.00019514,2]
[360198062,1746616235568,-450.0,0.00019514,2]
[360198064,1746616235577,-459.93570431,0.00019514,2]
[360198066,1746616235587,-450.0,0.00019514,2]
[360198068,1746616235600,-450.0,0.00019514,2]
[360198070,1746616235610,-450.0,0.00019514,2]
[360198073,1746616235620,-455.26516678,0.00019514,2]
[360198075,1746616235629,-450.0,0.00019514,2]
[360198077,1746616235640,-450.0,0.00019514,2]
[360198079,1746616235649,-450.0,0.00019514,2]
[360198081,1746616235657,-450.0,0.00019514,2]
[360198082,1746616235668,-450.0,0.00019514,2]
[360198084,1746616235678,-483.84421354,0.00019514,2]
[360198086,1746616235687,-450.0,0.00019514,2]
[360198088,1746616235696,-450.0,0.00019514,2]
[360198090,1746616235706,-480.26795919,0.00019514,2]
[360198092,1746616235715,-450.0,0.00019514,2]
[360198094,1746616235724,-212.26378032,0.00019514,2]
[360198096,1746616235733,-450.0,0.00019514,2]
[360198098,1746616235742,-464.42699737,0.00019514,2]
[360198100,1746616235752,-450.0,0.00019514,2]
[360198102,1746616235761,-582.47,0.00019514,2]
[360198104,1746616235770,-162.26795483,0.00019514,2]
[360198106,1746616235779,-484.08393194,0.00019514,2]
[360198108,1746616235789,-450.0,0.00019514,2]
[360198110,1746616235798,-450.0,0.00019514,2]
[360198112,1746616235807,-450.0,0.00019514,2]
[360198114,1746616235817,-450.0,0.00019514,2]
[360198116,1746616235827,-450.0,0.00019514,2]
[360198118,1746616235836,-212.52905838,0.00019514,2]
[360198120,1746616235846,-463.62010244,0.00019514,2]
[360198122,1746616235855,-480.96266995,0.00019514,2]
[360198124,1746616235864,-504.07256463,0.00019514,2]
[360198126,1746616235873,-450.0,0.00019514,2]
[360198128,1746616235882,-450.0,0.00019514,2]
[360198130,1746616235891,-450.0,0.00019514,2]
[360198132,1746616235901,-450.0,0.00019514,2]
[360198134,1746616235911,-450.0,0.00019514,2]
[360198136,1746616235920,-490.7385087,0.00019514,2]
[360198138,1746616235929,-450.0,0.00019514,2]
[360198140,1746616235938,-450.0,0.00019514,2]
[360198142,1746616235947,-450.0,0.00019514,2]
[360198144,1746616235956,-450.0,0.00019514,2]
[360198146,1746616235965,-450.0,0.00019514,2]
[360198147,1746616235974,-450.0,0.00019514,2]
[360198148,1746616235984,-450.0,0.00019514,2]
[360198150,1746616235993,-568.10114135,0.00019514,2]
[360198152,1746616236002,-450.0,0.00019514,2]
[360198154,1746616236011,-450.0,0.00019514,2]
[360198156,1746616236020,-450.0,0.00019514,2]
[360198158,1746616236029,-450.0,0.00019514,2]
[360198159,1746616236038,-450.0,0.00019514,2]
[360198161,1746616236048,-450.0,0.00019514,2]
[360198163,1746616236057,-450.0,0.00019514,2]
[360198165,1746616236066,-450.0,0.00019514,2]
[360198167,1746616236075,-479.87094506,0.00019514,2]
[360198169,1746616236084,-450.0,0.00019514,2]
[360198171,1746616236093,-494.71,0.00019514,2]
[360198173,1746616236102,-450.0,0.00019514,2]
[360198175,1746616236111,-522.71,0.00019514,2]
[360198177,1746616236120,-450.0,0.00019514,2]
[360198179,1746616236129,-450.0,0.00019514,2]
[360198181,1746616236138,-450.0,0.00019514,2]
[360198183,1746616236147,-450.0,0.00019514,2]
[360198185,1746616236156,-450.0,0.00019514,2]
[360198187,1746616236165,-487.55556937,0.00019514,2]
[360198189,1746616236175,-450.0,0.00019514,2]
[360198191,1746616236184,-450.0,0.00019514,2]
[360198193,1746616236194,-450.0,0.00019514,2]
[360198195,1746616236204,-450.0,0.00019514,2]
[360198197,1746616236215,-522.72477206,0.00019514,2]
[360198199,1746616236224,-465.34252258,0.00019514,2]
[360198201,1746616236234,-450.0,0.00019514,2]
[360198203,1746616236243,-450.0,0.00019514,2]
[360198205,1746616236253,-453.0546469,0.00019514,2]
[360198207,1746616236265,-450.0,0.00019514,2]
[360198210,1746616236276,-794.96,0.00019514,2]
[360198212,1746616236285,-450.0,0.00019514,2]
[360198214,1746616236294,-524.92792771,0.00019514,2]
[360198215,1746616236305,-536.46542543,0.00019514,2]
[360198218,1746616236317,-450.0,0.00019514,2]
[360198220,1746616236326,-450.0,0.00019514,2]
[360198222,1746616236336,-593.10845015,0.00019514,2]
[360198223,1746616236347,-450.0,0.00019514,2]
[360198225,1746616236356,-450.0,0.00019514,2]
[360198228,1746616236366,-450.0,0.00019514,2]
[360198229,1746616236375,-450.0,0.00019514,2]
[360198231,1746616236386,-450.0,0.00019514,2]
[360198233,1746616236395,-450.0,0.00019514,2]
[360198235,1746616236404,-461.61,0.00019514,2]
[360198237,1746616236414,-470.0,0.00019514,2]
[360198239,1746616236423,-468.42951119,0.00019514,2]
[360198241,1746616236432,-450.0,0.00019514,2]
[360198243,1746616236441,-450.0,0.00019514,2]
[360198245,1746616236451,-470.0,0.00019514,2]
[360198247,1746616236461,-1383.88,0.00019514,2]
[360198249,1746616236470,-582.07389186,0.00019514,2]
[360198251,1746616236480,-450.0,0.00019514,2]
[360198253,1746616236490,-450.0,0.00019514,2]
[360198255,1746616236499,-470.0,0.00019514,2]
[360198257,1746616236508,-14554.24,0.00019514,2]
[360198259,1746616236517,-450.0,0.00019514,2]
[360198261,1746616236527,-450.0,0.00019514,2]
[360198263,1746616236535,-450.0,0.00019514,2]
[360198265,1746616236545,-450.0,0.00019514,2]
[360198267,1746616236554,-450.0,0.00019514,2]
[360198269,1746616236563,-450.0,0.00019514,2]
[360198271,1746616236573,-450.0,0.00019514,2]
[360198273,1746616236581,-450.0,0.00019514,2]
[360198275,1746616236596,-450.0,0.00019514,2]
[360198277,1746616236606,-450.0,0.00019514,2]
[360198279,1746616236615,-450.0,0.00019514,2]
[360198281,1746616236624,-450.0,0.00019514,2]
[360198283,1746616236634,-450.0,0.00019514,2]
[360198285,1746616236644,-4757.89,0.00019514,2]
[360198287,1746616236653,-175.66804,0.00019514,2]
[360198289,1746616236661,-450.0,0.00019514,2]
[360198291,1746616236670,-450.0,0.00019514,2]
[360198292,1746616236681,-468.68347763,0.00019514,2]
[360198293,1746616236691,-182.06266934,0.00019515,2]
[360198294,1746616236700,-187.06647206,0.00019515,2]
[360198295,1746616236710,-472.03657244,0.00019515,2]
[360198296,1746616236719,-474.52116452,0.00019515,2]
[360198297,1746616236728,-511.2308486,0.00019515,2]
[360198298,1746616236738,-581.25226126,0.00019515,2]
[360198299,1746616236747,-244.33224473,0.00019515,2]
[360198300,1746616236757,-450.0,0.00019515,2]
[360198301,1746616236766,-285.79916523,0.00019515,2]
[360198302,1746616236776,-450.0,0.00019515,2]
[360198303,1746616236786,-450.0,0.00019515,2]
[360198304,1746616236795,-532.61203532,0.00019515,2]
[360198305,1746616236805,-450.0,0.00019515,2]
[360198306,1746616236814,-450.0,0.00019515,2]
[360198307,1746616236824,-404.03,0.00019516,2]
[360198308,1746616236835,-450.0,0.00019516,2]
[360198309,1746616236844,-450.0,0.00019516,2]
[360198310,1746616236854,-450.0,0.00019526,2]
[360198311,1746616236863,-450.0,0.00019526,2]
[360198312,1746616236872,-514.53928622,0.00019526,2]
[360198313,1746616236882,-450.0,0.00019526,2]
[360198314,1746616237049,-450.0,0.00019526,2]
[360198315,1746616237061,-450.0,0.00019526,2]
[360198316,1746616237071,-450.0,0.00019526,2]
[360198317,1746616237079,-513.25686656,0.00019526,2]
[360198318,1746616237090,-450.0,0.00019526,2]
[360198319,1746616237099,-450.0,0.00019526,2]
[360198320,1746616237110,-460.41,0.00019526,2]
[360198321,1746616237120,-450.0,0.00019526,2]
[360198322,1746616237129,-450.0,0.00019526,2]
[360198323,1746616237138,-450.0,0.00019526,2]
[360198324,1746616237148,-456.07764496,0.00019526,2]
[360198325,1746616237158,-412.41337402,0.00019526,2]
[360198326,1746616237167,-450.0,0.00019526,2]
[360198327,1746616237176,-488.09021312,0.00019526,2]
[360198328,1746616237186,-450.0,0.00019526,2]
[360198329,1746616237195,-494.69043897,0.00019526,2]
[360198330,1746616237204,-450.0,0.00019526,2]
[360198331,1746616237214,-450.0,0.00019526,2]
[360198332,1746616237225,-540.4530145,0.00019526,2]
[360198333,1746616237235,-450.0,0.00019526,2]
[360198334,1746616237245,-450.0,0.00019526,2]
[360198335,1746616237256,-450.0,0.00019526,2]
[360198336,1746616237266,-450.0,0.00019526,2]
[360198337,1746616237275,-462.74893311,0.00019526,2]
[360198338,1746616237284,-450.0,0.00019526,2]